bitfinex-derivatives/quotes_ETHF0:USTF0_20251031
["timestamp","ask_amount","ask_price","bid_price","bid_amount"]
[1761941655966,0.2468,3888.0,3887.9,3.2078]
[1761941656172,1.77802985,3888.0,3887.9,3.2078]
[1761941656672,0.2468,3887.8,3887.7,0.00210998]
[1761941658866,0.2468,3887.8,3887.7,0.25650998]
[1761941659773,1.38961082,3887.9,3887.7,0.25650998]
[1761941660073,1.38961082,3887.9,3887.8,0.2544]
[1761941660577,1.63641082,3887.9,3887.8,0.2544]
[1761941662177,1.38961082,3887.9,3887.8,0.2544]
[1761941662377,1.38961082,3888.0,3887.9,0.2456]
[1761941662976,1.38961082,3888.1,3888.0,0.3857]
[1761941663574,1.38961082,3888.3,3888.2,0.2456]
[1761941664178,1.38961082,3888.4,3888.3,0.2456]
[1761941664582,1.38961082,3888.5,3888.4,0.2456]
[1761941664877,1.38961082,3888.6,3888.5,0.3906]
[1761941665778,1.47006736,3888.6,3888.5,0.3906]
[1761941666277,0.08045654,3888.6,3888.5,0.3906]
[1761941667784,0.08045654,3888.6,3888.5,0.2456]
[1761941667985,0.31255654,3888.6,3888.5,0.2456]
[1761941668277,0.08045654,3888.6,3888.5,0.3911]
[1761941668974,1.38961082,3889.0,3888.9,0.2456]
[1761941669180,0.00275985,3889.1,3889.0,0.3911]
[1761941669482,13.4998,3890.7,3889.0,0.3911]
[1761941669483,1.38961082,3890.4,3889.1,0.46307]
[1761941669674,0.1373,3890.0,3889.5,0.1455]
[1761941670380,0.13956626,3890.0,3889.5,0.1455]
[1761941670568,0.13956626,3890.0,3889.4,3.2078]
[1761941671170,0.13956626,3890.0,3889.5,0.1455]
[1761941671171,0.00226626,3890.0,3889.5,0.1455]
[1761941671384,0.00226626,3890.0,3889.9,0.2456]
[1761941671883,0.23436626,3890.0,3889.9,0.2456]
[1761941672178,0.00226626,3890.0,3889.9,0.2456]
[1761941676180,0.00226626,3890.0,3889.9,3.4534]
[1761941680289,0.23436626,3890.0,3889.9,3.4534]
[1761941680485,0.00226626,3890.0,3889.9,3.4534]
[1761941680991,0.1341,3891.0,3890.0,0.59816]
[1761941681198,14.29286161,3891.5,3890.8,0.218]
[1761941681199,0.08041543,3890.9,3890.8,0.218]
[1761941681493,0.08041543,3890.9,3890.8,3.4258]
[1761941682084,0.08304532,3890.9,3890.8,3.42883211]
[1761941683285,0.00262989,3890.9,3890.8,3.42883211]
[1761941690303,0.23692989,3890.9,3890.8,0.22103211]
[1761941690490,0.31733827,3890.9,3890.8,0.00303211]
[1761941691004,0.31733827,3890.9,3890.8,0.22103211]
[1761941695795,0.31733827,3890.9,3890.8,0.00303211]
[1761941696397,0.31733827,3890.9,3890.8,0.22103211]
[1761941696603,0.08303827,3890.9,3890.8,0.22103211]
[1761941703901,0.08303827,3890.9,3890.8,0.68391211]
[1761941704303,1.38961082,3891.7,3891.6,0.218]
[1761941704611,1.38961082,3891.9,3891.8,0.218]
[1761941705305,1.39261406,3891.9,3891.8,0.218]
[1761941705504,0.00300324,3891.9,3891.8,0.218]
[1761941705699,0.00300324,3891.9,3891.5,0.1352]
[1761941705910,0.2343,3891.1,3891.0,3.561]
[1761941706208,0.2343,3891.1,3891.0,0.218]
[1761941706403,1.52371082,3891.5,3891.0,0.218]
[1761941706608,1.52371082,3891.5,3891.0,0.3532]
[1761941706807,0.1341,3891.5,3891.0,0.3532]
[1761941707008,1.38961082,3891.4,3891.0,0.3532]
[1761941707405,1.52371082,3891.5,3891.0,0.3532]
[1761941707805,1.38961082,3891.5,3891.4,0.218]
[1761941708007,0.3684,3891.5,3891.0,3.343]
[1761941708809,0.2343,3891.1,3891.0,3.2078]
[1761941709112,0.2343,3891.1,3890.6,3.2078]
[1761941710404,0.2343,3890.9,3890.6,3.2078]
[1761941710601,0.2343,3890.9,3890.8,0.22463211]
[1761941710804,0.2343,3890.9,3890.8,0.00303211]
[1761941712102,0.2143,3890.3,3890.2,3.2078]
[1761941712717,0.2143,3890.3,3889.6,3.2078]
[1761941712718,0.2143,3889.7,3889.6,3.2078]
[1761941713015,3.2078,3889.9,3889.6,0.2216]
[1761941713208,4.72466611,3890.0,3889.8,0.2216]
[1761941713402,3.3375,3890.0,3889.8,0.2216]
[1761941713910,0.2143,3889.9,3889.8,0.2216]
[1761941714304,0.2143,3889.9,3889.6,0.00294426]
[1761941715606,0.2143,3889.7,3889.6,0.00294426]
[1761941716211,0.29473253,3889.7,3889.6,0.00294426]
[1761941716712,0.49521924,3889.7,3889.6,0.00294426]
[1761941716915,0.2143,3889.1,3888.7,3.2078]
[1761941717111,0.1297,3889.5,3889.0,0.3568]
[1761941717316,3.2078,3889.6,3889.5,0.2216]
[1761941717517,3.28823614,3889.6,3889.5,0.3568]
[1761941717912,3.2904919,3889.6,3889.5,0.3587154]
[1761941718918,3.5047919,3889.6,3889.5,0.2235154]
[1761941719220,3.2904919,3889.6,3889.5,0.3587154]
[1761941719815,3.2904919,3889.6,3889.5,0.1371154]
[1761941720020,3.2904919,3889.6,3889.5,0.3587154]
[1761941720620,0.0826919,3889.6,3889.5,0.8217454]
[1761941720823,3.2078,3890.4,3890.3,0.2216]
[1761941721021,3.28822206,3890.4,3890.3,0.2216]
[1761941722022,3.29156053,3890.4,3890.3,0.2216]
[1761941722826,0.08376053,3890.4,3890.3,0.2216]
[1761941723412,0.34086053,3890.4,3890.3,0.2559]
[1761941723612,0.08376053,3890.4,3890.3,0.2559]
[1761941725723,0.34086053,3890.4,3890.3,0.2559]
[1761941726823,0.34085339,3890.4,3890.3,0.2559]
[1761941728125,0.08375339,3890.4,3890.3,0.2559]
[1761941730227,0.2571,3890.1,3889.7,3.2078]
[1761941730414,0.1501,3890.0,3889.5,0.1371154]
[1761941730815,0.00333847,3890.4,3889.5,0.1371154]
[1761941731124,0.08042289,3890.3,3889.5,0.1371154]
[1761941731320,0.08042289,3890.2,3889.5,0.1371154]
[1761941731522,0.08042289,3890.1,3889.5,0.1371154]
[1761941731723,0.48762289,3890.0,3889.5,0.1371154]
[1761941731924,0.08042289,3889.9,3889.5,0.1371154]
[1761941732115,0.08042289,3889.8,3889.5,0.0019154]
[1761941732316,0.2571,3889.6,3889.5,0.0019154]
[1761941732516,0.33752289,3889.6,3889.5,0.0019154]
[1761941733319,0.33752289,3889.6,3889.5,0.2578154]
[1761941734025,0.08042289,3889.6,3889.5,0.4077154]
[1761941734324,3.2078,3890.1,3890.0,0.4058]
[1761941734530,3.28822727,3890.1,3890.0,0.4058]
[1761941734919,3.54532727,3890.1,3890.0,0.2559]
[1761941735219,3.54532585,3890.1,3890.0,0.2559]
[1761941737324,3.28822585,3890.1,3890.0,0.4058]
[1761941737718,0.08042585,3890.1,3890.0,0.4058]
[1761941740527,0.08042585,3890.1,3890.0,0.86877]
[1761941741327,0.08042585,3890.1,3890.0,0.4058]
[1761941742216,0.08042585,3890.1,3890.0,0.86877]
[1761941743531,0.08042585,3890.1,3890.0,0.4058]
[1761941745427,0.31202585,3890.1,3890.0,0.2559]
[1761941746422,0.31202319,3890.1,3890.0,0.2559]
[1761941747125,0.31202319,3890.1,3889.6,0.46301]
[1761941747325,0.08042319,3890.0,3889.6,0.46301]
[1761941747525,0.08042319,3889.9,3889.8,0.2279]
[1761941748026,0.00333847,3890.4,3890.3,0.2279]
[1761941748232,3.2078,3891.5,3891.4,0.2279]
[1761941748432,3.2078,3891.5,3891.0,0.1416]
[1761941748433,3.5762,3891.5,3891.0,0.1416]
[1761941748831,0.3684,3891.5,3891.0,0.1416]
[1761941749029,0.2316,3891.5,3891.4,0.2279]
[1761941749831,0.23435734,3891.5,3891.4,0.2279]
[1761941751033,0.23435734,3891.5,3891.0,3.3494]
[1761941752033,0.00275734,3891.5,3891.4,0.2279]
[1761941753033,0.23435734,3891.5,3891.4,0.2279]
[1761941754636,0.00275734,3891.5,3891.4,0.2279]
[1761941759838,0.00275734,3891.5,3891.4,0.69071]
[1761941760835,3.2078,3892.3,3892.2,0.2279]
[1761941761035,3.28818029,3892.3,3892.2,0.2279]
[1761941761235,3.51978029,3892.3,3892.2,0.2279]
[1761941761534,3.51978029,3892.3,3892.0,0.1416]
[1761941761735,0.1368,3892.0,3891.5,0.1416]
[1761941762335,0.1368,3892.0,3891.6,0.46278]
[1761941762638,0.2316,3891.6,3891.4,3.2078]
[1761941762840,0.1368,3892.0,3891.5,0.3695]
[1761941763040,0.08038593,3891.9,3891.5,0.3695]
[1761941763241,0.08038593,3891.8,3891.7,0.2279]
[1761941764144,0.3684,3891.5,3891.4,3.2078]
[1761941764439,0.44879032,3891.5,3891.4,3.2078]
[1761941765239,0.1368,3892.0,3891.4,3.2078]
[1761941765537,0.08038978,3891.9,3891.4,3.2078]
[1761941765736,0.08038978,3891.8,3891.4,3.2078]
[1761941766035,0.08038978,3891.7,3891.6,0.2279]
[1761941766238,4.5953834,3892.3,3891.8,0.2279]
[1761941766542,0.08038921,3892.2,3891.8,0.2279]
[1761941766740,0.08038921,3892.1,3891.8,0.2279]
[1761941766940,0.08038921,3892.0,3891.9,0.2279]
[1761941767140,0.31198921,3892.0,3891.9,0.2279]
[1761941767537,0.44878921,3892.0,3891.5,0.1416]
[1761941767737,0.44878921,3892.0,3891.0,3.3494]
[1761941767738,0.2316,3891.6,3891.1,0.46284]
[1761941767938,0.08038921,3891.5,3891.4,0.2279]
[1761941768139,0.08038921,3891.8,3891.4,0.2279]
[1761941768345,0.08038921,3891.7,3891.4,0.2279]
[1761941768644,0.08038921,3891.6,3891.4,0.2279]
[1761941768846,0.08038921,3891.5,3891.4,0.2279]
[1761941769742,0.31198921,3891.5,3891.4,0.2279]
[1761941769941,0.44878921,3891.5,3891.0,3.3494]
[1761941770144,0.08038921,3891.4,3891.0,3.3494]
[1761941770833,0.2319,3890.7,3890.2,3.2078]
[1761941771036,0.1282,3891.0,3890.6,0.2174]
[1761941771237,0.2319,3890.7,3890.6,0.2174]
[1761941771440,0.31230622,3890.7,3890.2,3.2078]
[1761941771642,0.08040622,3890.6,3890.2,3.2078]
[1761941771840,3.2078,3890.9,3890.2,3.2078]
[1761941772043,0.08040841,3890.8,3890.2,3.2078]
[1761941772243,0.08040841,3890.7,3890.2,3.2078]
[1761941772443,0.08040841,3890.6,3890.2,3.2078]
[1761941772637,3.2078,3890.9,3890.0,0.1416]
[1761941772837,0.08041129,3890.8,3890.7,0.2174]
[1761941773651,0.08041129,3890.8,3890.7,0.68029]
[1761941773947,3.2078,3891.7,3891.6,0.2174]
[1761941775250,3.21073364,3892.3,3891.6,0.2174]
[1761941776049,0.2319,3891.7,3891.6,0.2174]
[1761941776348,0.2319,3891.7,3891.1,3.2078]
[1761941777046,0.2319,3891.7,3891.1,3.67064]
[1761941777344,0.2319,3891.7,3891.0,0.1316]
[1761941778346,0.2319,3891.1,3890.7,3.89559583]
[1761941778550,0.2319,3891.1,3891.0,0.2174]
[1761941778843,0.1282,3891.5,3891.0,0.349]
[1761941779044,0.2319,3890.8,3890.7,3.2078]
[1761941779447,0.2319,3890.8,3890.7,3.4252]
[1761941780047,1.38464976,3891.4,3890.7,3.4252]
[1761941781556,0.2207,3891.4,3891.0,0.1328]
[1761941781754,0.2207,3891.1,3890.7,3.2078]
[1761941781954,1.38464976,3891.4,3891.0,0.3656]
[1761941782256,4.59244976,3891.5,3891.3,0.2328]
[1761941782755,0.2207,3891.4,3891.3,0.2328]
[1761941783952,0.2207,3891.4,3891.0,0.1328]
[1761941784556,0.2207,3891.1,3890.7,3.2078]
[1761941784751,0.2207,3891.1,3891.0,0.2328]
[1761941785751,0.30110218,3891.1,3891.0,0.2328]
[1761941786157,0.08040218,3891.1,3891.0,0.3656]
[1761941786853,0.30110218,3891.1,3891.0,0.2328]
[1761941788256,0.141,3891.0,3890.7,3.2078]
[1761941788552,0.08040218,3890.9,3890.7,3.2078]
[1761941788757,0.08040218,3890.8,3890.7,3.2078]
[1761941788954,0.30110218,3890.8,3890.7,3.2078]
[1761941789856,0.30110218,3890.8,3890.7,3.4406]
[1761941790259,0.08040218,3890.8,3890.7,3.4406]
[1761941790459,0.08040239,3890.9,3890.8,0.2328]
[1761941794650,0.30110239,3890.9,3890.8,0.2328]
[1761941796855,0.30110239,3890.9,3890.5,0.1316]
[1761941797057,0.08040239,3890.8,3890.5,0.1316]
[1761941797358,3.3488,3891.0,3890.5,0.1316]
[1761941797359,0.08040239,3890.7,3890.6,0.2328]
[1761941797753,0.08040239,3890.9,3890.6,0.2328]
[1761941798061,3.3488,3891.0,3890.7,0.2328]
[1761941798062,0.08040239,3890.8,3890.7,0.2328]
[1761941798762,0.08040239,3890.9,3890.7,0.2328]
[1761941798950,0.08040239,3890.8,3890.7,0.2328]
[1761941799155,3.3488,3891.0,3890.9,0.2328]
[1761941799461,3.42920584,3891.0,3890.9,0.2328]
[1761941801063,3.42920584,3891.0,3890.5,0.1316]
[1761941801064,3.64990584,3891.0,3890.5,0.1316]
[1761941801363,0.08040584,3890.9,3890.5,0.1316]
[1761941805969,0.08040584,3890.9,3890.8,0.2246]
[1761941807264,0.08040584,3890.9,3890.8,0.68748]
[1761941807862,4.59244976,3891.4,3891.2,0.2246]
[1761941808062,3.2078,3891.4,3891.3,0.2246]
[1761941808263,3.28819942,3891.4,3891.3,0.2246]
[1761941810272,4.67632044,3891.4,3891.3,0.2246]
[1761941810770,3.52079942,3891.4,3890.5,0.81939583]
[1761941810974,1.46853876,3891.3,3890.5,0.81939583]
[1761941811165,1.38813934,3891.1,3890.5,0.1316]
[1761941811470,0.08039942,3891.0,3890.9,0.2246]
[1761941811670,0.31299942,3891.0,3890.9,0.2246]
[1761941815173,0.44069942,3891.0,3890.5,0.1316]
[1761941815469,0.08039942,3890.9,3890.8,0.2246]
[1761941815872,1.38813934,3891.1,3890.9,0.2246]
[1761941816171,0.08040403,3891.0,3890.9,0.2246]
[1761941818874,0.31300403,3891.0,3890.9,0.2246]
[1761941819670,0.08040403,3891.0,3890.9,0.2246]
[1761941821481,3.64850403,3891.0,3890.5,0.1316]
[1761941821778,0.08040403,3890.9,3890.5,0.1316]
[1761941821982,0.08040403,3890.8,3890.5,0.1316]
[1761941822171,0.08040403,3890.8,3890.1,0.68779583]
[1761941822172,0.1277,3890.5,3890.1,0.68779583]
[1761941822370,0.08040403,3890.4,3890.0,0.1416]
[1761941822574,0.08040403,3890.4,3890.3,0.2246]
[1761941822978,0.31300403,3890.4,3890.3,0.2246]
[1761941823178,0.08040403,3890.4,3890.3,0.2246]
[1761941823378,0.08040403,3890.5,3890.3,0.2246]
[1761941823574,0.08040403,3890.4,3890.3,0.2246]
[1761941823770,0.31300403,3890.4,3890.3,0.2246]
[1761941824181,0.31300403,3890.4,3890.0,0.1416]
[1761941824482,0.08040403,3890.3,3890.0,0.1416]
[1761941824680,0.08040403,3890.2,3890.1,0.2246]
[1761941825476,0.08040403,3890.4,3890.1,0.2246]
[1761941825677,0.2326,3889.9,3889.8,3.2078]
[1761941825888,0.31300403,3889.9,3889.8,3.2078]
[1761941826077,0.31300403,3889.9,3889.8,3.4324]
[1761941826478,0.31300403,3889.9,3889.8,3.2078]
[1761941827785,0.31300403,3889.9,3889.8,3.4324]
[1761941829289,0.31300403,3889.9,3889.8,0.2246]
[1761941829497,0.31300403,3889.9,3889.5,0.1335154]
[1761941829688,0.08040403,3889.8,3889.7,0.2246]
[1761941829890,0.20810403,3890.0,3889.7,0.2246]
[1761941830190,0.08040403,3889.9,3889.7,0.2246]
[1761941832104,0.2326,3889.8,3889.7,0.2246]
[1761941832402,0.31300403,3889.8,3889.7,0.2246]
[1761941832600,0.31300403,3889.8,3889.5,0.1335154]
[1761941832799,0.08040403,3889.7,3889.5,0.1335154]
[1761941833001,0.08040403,3889.6,3889.5,0.1335154]
[1761941833202,0.29810403,3889.6,3889.5,0.0019154]
[1761941834002,0.2177,3889.6,3889.5,0.0019154]
[1761941834506,0.2177,3889.6,3889.5,0.2247154]
[1761941836202,3.2078,3889.7,3889.6,0.2228]
[1761941836505,3.41543508,3890.1,3889.6,0.2228]
[1761941836904,3.2078,3890.1,3889.6,0.2228]
[1761941837106,3.2078,3890.1,3890.0,0.2228]
[1761941838505,3.2078,3890.1,3890.0,0.3566]
[1761941839103,3.28822052,3890.1,3890.0,0.3566]
[1761941840507,0.08042052,3890.1,3890.0,0.3566]
[1761941842711,0.08042052,3890.1,3890.0,0.81957]
[1761941842904,3.2078,3890.5,3890.4,0.2228]
[1761941843103,3.2882149,3890.5,3890.4,0.2228]
[1761941845013,3.5182149,3890.5,3890.4,0.2228]
[1761941845207,3.6558149,3890.5,3890.0,0.1338]
[1761941845403,0.0804149,3890.4,3890.0,0.1338]
[1761941847008,0.0804149,3890.4,3890.3,0.2285]
[1761941847920,0.1376,3890.0,3889.7,3.2078]
[1761941848112,0.0804149,3889.9,3889.5,0.1357154]
[1761941848311,0.0804149,3889.9,3889.8,0.2285]
[1761941849204,1.46855424,3890.3,3889.8,0.2285]
[1761941849405,0.0804149,3890.2,3889.8,0.2285]
[1761941852315,1.46855424,3890.2,3889.8,0.2285]
[1761941852514,0.0804149,3890.1,3889.8,0.2285]
[1761941852707,0.0804149,3890.1,3890.0,0.3671]
[1761941853108,1.46855424,3890.2,3890.0,0.3671]
[1761941853314,0.0804149,3890.1,3890.0,0.3671]
[1761941857120,0.0804149,3890.1,3890.0,0.2285]
[1761941861113,0.0804149,3890.1,3890.0,0.3693]
[1761941862019,0.3009149,3890.1,3889.5,0.5987454]
[1761941862221,0.0804149,3890.0,3889.9,0.2159]
[1761941862608,0.3563,3890.0,3889.5,0.1357154]
[1761941862814,0.0804149,3889.9,3889.5,0.1357154]
[1761941863614,0.0804149,3889.9,3889.5,0.0019154]
[1761941864618,0.0804149,3889.9,3889.5,0.1427154]
[1761941865124,0.0804149,3889.9,3889.8,0.2159]
[1761941865318,4.59593934,3890.1,3889.9,0.2159]
[1761941865512,0.08042648,3890.0,3889.9,0.2159]
[1761941867819,0.43672648,3890.0,3889.5,0.1427154]
[1761941868021,0.08042648,3889.9,3889.5,0.1427154]
[1761941868223,0.08042648,3889.8,3889.5,0.1427154]
[1761941868416,0.08042648,3889.7,3889.5,0.1427154]
[1761941868619,0.08042648,3889.6,3889.5,0.3586154]
[1761941868820,0.08042648,3889.8,3889.5,0.3586154]
[1761941870423,0.08042648,3889.8,3889.7,0.2159]
[1761941871822,0.30092648,3889.8,3889.5,0.0019154]
[1761941872027,0.08042648,3889.7,3889.6,0.2159]
[1761941872227,0.0804294,3889.8,3889.7,0.2159]
[1761941876332,0.3009294,3889.8,3889.5,0.1427154]
[1761941876534,0.0804294,3889.7,3889.5,0.1427154]
[1761941876730,0.0804294,3889.6,3889.5,0.1427154]
[1761941876928,0.0804294,3889.7,3889.5,0.1427154]
[1761941877136,0.0804294,3889.6,3889.5,0.3586154]
[1761941877337,1.38813934,3889.8,3889.7,0.2159]
[1761941877525,1.46856726,3889.8,3889.7,0.2159]
[1761941879433,0.08042792,3889.8,3889.7,0.2159]
[1761941882935,0.08042792,3889.8,3889.7,3.88671]
[1761941883142,0.08042792,3889.8,3889.7,3.4237]
[1761941883838,0.08042792,3889.8,3889.7,3.88671]
[1761941885727,0.08042792,3889.8,3889.7,3.4237]
[1761941886029,1.38813934,3890.4,3890.3,0.2159]
[1761941886230,3.2078,3890.6,3890.5,0.3567]
[1761941887939,1.52393934,3891.0,3890.5,0.3567]
[1761941889040,0.2205,3890.6,3890.5,0.2159]
[1761941889940,0.1358,3890.5,3890.1,3.2078]
[1761941890238,0.1358,3890.5,3890.0,0.1408]
[1761941890438,0.1358,3890.5,3889.7,3.2078]
[1761941890439,0.2205,3890.1,3889.7,3.2078]
[1761941890938,0.2241,3889.8,3889.5,0.1427154]
[1761941891131,0.2241,3889.8,3889.7,0.2204]
[1761941893344,0.2241,3889.6,3889.5,0.0019154]
[1761941895836,0.2241,3889.0,3888.6,0.69199597]
[1761941896036,0.3609,3889.0,3888.5,3.81175]
[1761941896937,0.36329906,3889.0,3888.5,3.81449647]
[1761941897137,0.36329906,3889.0,3888.5,3.35134647]
[1761941898143,0.08044279,3888.9,3888.5,3.35134647]
[1761941898342,0.08044314,3888.8,3888.5,3.35134647]
[1761941898642,0.2241,3888.6,3888.5,3.35134647]
[1761941898846,0.2241,3888.6,3888.5,3.21054647]
[1761941899648,0.00239906,3889.0,3888.9,0.2204]
[1761941900148,0.30694475,3889.0,3888.9,0.2204]
[1761941901361,0.30694475,3889.0,3888.5,3.34314647]
[1761941901362,0.44374475,3889.0,3888.5,3.34314647]
[1761941901649,0.08044569,3888.9,3888.8,0.2204]
[1761941904549,0.29674569,3888.9,3888.8,0.2204]
[1761941904847,0.29674569,3888.9,3888.5,3.34314647]
[1761941905050,0.2163,3888.9,3888.5,3.34314647]
[1761941905449,0.00239906,3889.0,3888.9,0.2174]
[1761941905640,0.08284329,3889.0,3888.9,0.2174]
[1761941906052,0.29914329,3889.0,3888.9,0.2174]
[1761941908156,0.29914317,3889.0,3888.9,0.2174]
[1761941910358,0.42664317,3889.0,3888.5,3.34314647]
[1761941910553,0.08044411,3888.9,3888.5,3.34314647]
[1761941910947,0.08044411,3888.9,3888.8,0.2174]
[1761941912860,0.29674411,3888.9,3888.8,0.2174]
[1761941913157,0.2163,3888.6,3888.5,0.22014647]
[1761941913455,0.2163,3888.6,3888.5,0.00274647]
[1761941913853,0.12989906,3889.0,3888.5,0.35534647]
[1761941914154,0.08044829,3888.9,3888.5,0.2270656]
[1761941914359,0.12989906,3889.0,3888.5,0.2270656]
[1761941914561,0.0804468,3888.9,3888.5,0.2270656]
[1761941914773,0.12989906,3889.0,3888.5,0.2270656]
[1761941915062,0.08044674,3888.9,3888.8,0.2174]
[1761941915358,0.29674674,3888.9,3888.8,0.21959401]
[1761941915552,0.29674674,3888.9,3888.8,0.00219401]
[1761941922956,1.68488608,3888.9,3888.1,3.2078]
[1761941923260,0.1332,3888.5,3887.8,0.69249991]
[1761941923463,0.08044674,3888.4,3887.8,0.69249991]
[1761941924154,0.08044674,3888.4,3887.8,0.00210412]
[1761941924354,0.2318,3887.9,3887.8,0.00210412]
[1761941924560,0.31224674,3887.9,3887.8,0.00210412]
[1761941924952,0.31224674,3887.9,3887.8,0.21610412]
[1761941925154,0.31224674,3887.9,3887.8,0.00210412]
[1761941931954,0.08044674,3887.9,3887.8,0.67934412]
[1761941932155,3.2078,3888.2,3888.1,0.214]
[1761941932461,0.08046367,3888.2,3888.1,0.6772]
[1761941932863,0.08046367,3888.2,3888.1,3.885]
[1761941933059,1.38716317,3888.9,3888.1,3.885]
[1761941933262,0.08045348,3888.8,3888.1,3.885]
[1761941933465,0.08045348,3888.7,3888.2,0.46319]
[1761941933665,0.08045348,3888.6,3888.2,0.46319]
[1761941933853,0.08045348,3888.5,3888.4,0.214]
[1761941934258,0.08045348,3888.8,3888.4,0.214]
[1761941934565,0.08045348,3888.7,3888.6,0.214]
[1761941934761,0.08045405,3888.8,3888.7,0.214]
[1761941934961,0.08045379,3888.8,3888.7,0.214]
[1761941935364,0.08045379,3888.8,3888.1,3.2078]
[1761941935365,0.31225379,3888.8,3888.1,3.2078]
[1761941935566,0.08045379,3888.7,3888.1,3.2078]
[1761941935868,4.72486223,3889.0,3888.1,3.2078]
[1761941935869,0.08045379,3888.6,3888.1,3.671]
[1761941936063,0.08045379,3888.5,3888.4,0.214]
[1761941937867,0.31225379,3888.5,3888.4,0.214]
[1761941940372,0.08045379,3888.5,3888.4,0.214]
[1761941941563,0.44545379,3888.5,3887.7,3.90029991]
[1761941941768,0.08045379,3888.4,3887.7,3.67105]
[1761941942367,0.08045379,3888.4,3887.7,3.2078]
[1761941942568,0.08045379,3888.4,3887.8,0.46533412]
[1761941942968,0.08045379,3888.4,3887.8,0.00210412]
[1761941943978,0.08045379,3888.4,3887.8,0.46533412]
[1761941944378,0.08045379,3888.4,3888.3,0.214]
[1761941944579,3.2078,3888.6,3888.5,0.214]
[1761941944782,3.28825767,3888.6,3888.5,0.214]
[1761941944979,3.28825767,3888.6,3888.0,0.5936]
[1761941944980,3.52005767,3888.6,3888.0,0.5936]
[1761941945167,0.08045767,3888.5,3888.4,0.214]
[1761941951880,0.08045767,3888.5,3888.4,0.67716]
[1761941952379,3.21019906,3889.0,3888.4,0.67716]
[1761941952573,3.21019906,3889.0,3888.9,0.2263]
[1761941952775,3.29064678,3889.0,3888.9,0.2263]
[1761941953083,3.64274678,3889.0,3888.3,3.2078]
[1761941953385,0.08044772,3888.9,3888.3,3.2078]
[1761941954075,0.2175,3888.4,3888.3,3.2078]
[1761941954277,0.1346,3888.5,3887.9,0.69360619]
[1761941954278,0.2175,3888.1,3887.9,0.69360619]
[1761941954477,0.1346,3888.5,3888.0,0.2263]
[1761941954678,0.2175,3888.1,3888.0,0.2263]
[1761941956578,0.1346,3888.5,3888.0,0.2263]
[1761941956883,0.08045738,3888.4,3888.0,0.2263]
[1761941957078,0.08045738,3888.3,3888.0,0.2263]
[1761941957385,0.08045738,3888.2,3888.0,0.2263]
[1761941957680,0.2175,3888.1,3888.0,0.2263]
[1761941957885,0.2175,3888.1,3887.8,0.00210412]
[1761941958682,0.1346,3888.0,3887.8,0.00210412]
[1761941959681,0.1346,3888.5,3887.9,0.2263]
[1761941959884,0.08045763,3888.4,3887.9,0.2263]
[1761941960080,0.08045763,3888.3,3887.9,0.2263]
[1761941960388,0.08045763,3888.2,3887.9,0.2263]
[1761941960586,0.08045763,3888.1,3887.9,0.2263]
[1761941960787,0.1346,3888.5,3887.9,0.2263]
[1761941960992,0.08045674,3888.4,3887.9,0.2263]
[1761941961288,0.08045674,3888.3,3887.9,0.2263]
[1761941961482,0.08045674,3888.2,3887.9,0.2263]
[1761941961687,0.08045674,3888.1,3888.0,0.2263]
[1761941962286,0.29795674,3888.1,3888.0,0.2263]
[1761941962490,0.08045674,3888.1,3888.0,0.3584]
[1761941964287,0.08045674,3888.1,3888.0,0.2263]
[1761941966191,0.08045674,3888.1,3888.0,0.2292]
[1761941967192,0.30685674,3888.1,3888.0,0.2292]
[1761941967793,0.30685809,3888.1,3888.0,0.2292]
[1761941968994,0.08045809,3888.1,3888.0,0.2292]
[1761941969886,0.30685809,3888.1,3888.0,0.2292]
[1761941971888,0.3645,3887.5,3887.3,0.91706111]
[1761941972092,0.30686985,3887.4,3887.2,3.2078]
[1761941972288,0.2264,3887.4,3887.2,3.2078]
[1761941972483,0.2264,3887.4,3887.3,0.2292]
[1761941972889,0.30686992,3887.4,3887.3,0.2292]
[1761941973292,0.30686992,3887.4,3887.3,0.23107147]
[1761941975194,0.08046992,3887.4,3887.3,0.23107147]
[1761941975588,0.08046992,3887.4,3887.3,0.69437147]
[1761941979098,0.08046992,3887.4,3887.3,0.23107147]
[1761941979290,0.08046992,3887.4,3887.3,0.69436147]
[1761941980094,0.08046992,3887.4,3887.3,0.23107147]
[1761941980299,0.08046992,3887.4,3887.3,0.69437147]
[1761941984407,0.08046992,3887.4,3887.3,0.23107147]
[1761941984607,0.30626992,3887.4,3887.3,0.23107147]
[1761941985112,0.08046992,3887.4,3887.3,0.69437147]
[1761941992214,0.08046992,3887.4,3887.3,0.23107147]
[1761941992616,0.30626992,3887.4,3887.3,0.23107147]
[1761941992815,0.30626992,3887.4,3887.3,0.00187147]
[1761941995427,0.30627083,3887.4,3887.3,0.00187147]
[1761941999322,0.08047083,3887.4,3887.3,0.00187147]
[1761941999528,0.30627083,3887.4,3887.3,0.00187147]
[1761942000623,0.08047083,3887.4,3887.3,0.67997147]
[1761942007134,1.38716317,3888.3,3888.2,0.2148]
[1761942007730,0.1346,3888.5,3888.4,0.2148]
[1761942008738,0.3604,3888.5,3888.4,0.2148]
[1761942008931,1.38716317,3888.7,3888.6,0.2148]
[1761942009134,0.00239906,3889.0,3888.9,0.6779]
[1761942009340,0.00239906,3889.0,3888.9,3.8857]
[1761942014835,0.36859906,3889.0,3888.9,3.4226]
[1761942015038,0.36859906,3889.0,3888.0,1.28612]
[1761942015039,0.1313,3888.5,3888.0,1.05434898]
[1761942015242,0.1313,3888.5,3888.0,0.46321]
[1761942015639,0.1313,3888.5,3887.9,3.67101]
[1761942015844,0.1313,3888.5,3888.1,0.46319]
[1761942016142,0.1313,3888.5,3887.9,0.46322]
[1761942017143,0.1313,3888.5,3887.6,1.15815]
[1761942017834,0.1313,3888.5,3888.0,0.46321]
[1761942018041,0.1313,3888.5,3887.9,0.46322]
[1761942018642,0.1313,3888.5,3887.6,0.46325]
[1761942018845,3.2078,3887.9,3887.4,0.46328]
[1761942019045,3.2078,3887.9,3887.5,0.46327]
[1761942019846,0.08046134,3887.8,3887.3,0.00187147]
[1761942020046,0.08046134,3887.7,3887.4,0.46328]
[1761942020340,3.2078,3887.9,3887.5,0.46327]
[1761942020551,0.08046288,3887.8,3887.5,0.46327]